Workbook

Sheet Sheet4
B1: log(cfu/ml)
B2: Control1 | C2: Control2 | D2: Control3 | E2: Control4 | F2: Control5 | G2: Control6 | H2: Control7 | I2: Control8 | J2: Control9
A3: F2365 | B3: 9.63 | C3: 9.61 | D3: 9.67 | E3: 9.47 | F3: 9.47 | G3: 9.48
A4: ScottA | B4: 10.00 | C4: 9.97 | D4: 9.99 | E4: 9.63 | F4: 9.61 | G4: 9.63
A5: EGD-e | B5: 9.65 | C5: 9.62 | D5: 9.70 | E5: 9.51 | F5: 9.45 | G5: 9.34
A6: AB199 | B6: 9.74 | C6: 9.71 | D6: 9.68 | E6: 9.49 | F6: 9.42 | G6: 9.51
A7: RO15 | B7: 9.52 | C7: 9.48 | D7: 9.66 | E7: 9.28 | F7: 9.27 | G7: 9.31 | H7: 9.21 | I7: 9.16 | J7: 9.15
A8: AB120 | B8: 9.71 | C8: 9.68 | D8: 9.66 | E8: 9.25 | F8: 9.45 | G8: 9.51
A9: RO4 | B9: 9.77 | C9: 10.02 | D9: 9.91 | E9: 9.68 | F9: 9.63 | G9: 9.67
A10: C7 | B10: 9.76 | C10: 9.93 | D10: 9.78 | E10: 9.59 | F10: 9.44 | G10: 9.63
A11: MB5 | B11: 9.70 | C11: 9.70 | D11: 9.70 | E11: 9.60 | F11: 9.46 | G11: 9.42 | L11: Statistical test against RO15 log change
A12: 2HF33 | B12: 9.63 | C12: 9.64 | D12: 9.64 | E12: 9.49 | F12: 9.49 | G12: 9.57 | M12: T-test against RO15 | O12: Is < 0.05
L13: F2365 | M13: =_xlfn.T.TEST(B29:G29,$B$33:$J$33,2,2) -> 0.000175841 | O13: =IF(M13<=0.05,TRUE()) -> 1
B14: log(cfu/ml) | L14: ScottA | M14: =_xlfn.T.TEST(B30:G30,$B$33:$J$33,2,2) -> 0.007439751 | O14: =IF(M14<=0.05,TRUE()) -> 1
B15: Treatment1 | C15: Treatment2 | D15: Treatment3 | E15: Treatment4 | F15: Treatment5 | G15: Treatment6 | H15: Treatment7 | I15: Treatment8 | J15: Treatment9 | L15: EGD-e | M15: =_xlfn.T.TEST(B31:G31,$B$33:$J$33,2,2) -> 0.000000001 | O15: =IF(M15<=0.05,TRUE()) -> 1
A16: F2365 | B16: 9.22 | C16: 9.31 | D16: 9.13 | E16: 8.85 | F16: 8.81 | G16: 9.17 | L16: AB199 | M16: =_xlfn.T.TEST(B32:G32,$B$33:$J$33,2,2) -> 0.014831726 | O16: =IF(M16<=0.05,TRUE()) -> 1
A17: ScottA | B17: 8.75 | C17: 8.79 | D17: 8.83 | E17: 9.42 | F17: 9.48 | G17: 9.51 | L17: RO15 | M17: =_xlfn.T.TEST(B33:J33,$B$33:$J$33,2,2) -> 1.000000000 | O17: =IF(M17<=0.05,TRUE()) -> 0
A18: EGD-e | B18: 7.26 | C18: 7.36 | D18: 7.26 | E18: 7.72 | F18: 7.69 | G18: 7.58 | L18: AB120 | M18: =_xlfn.T.TEST(B34:G34,$B$33:$J$33,2,2) -> 0.003115066 | O18: =IF(M18<=0.05,TRUE()) -> 1
A19: AB199 | B19: 9.61 | C19: 9.37 | D19: 9.52 | E19: 9.21 | F19: 9.22 | G19: 9.06 | L19: RO4 | M19: =_xlfn.T.TEST(B35:G35,$B$33:$J$33,2,2) -> 0.000000014 | O19: =IF(M19<=0.05,TRUE()) -> 1
A20: RO15 | B20: 9.28 | C20: 9.36 | D20: 9.38 | E20: 9.13 | F20: 9.28 | G20: 9.39 | H20: 9.22 | I20: 9.19 | J20: 9.33 | L20: C7 | M20: =_xlfn.T.TEST(B36:G36,$B$33:$J$33,2,2) -> 0.002181697 | O20: =IF(M20<=0.05,TRUE()) -> 1
A21: AB120 | B21: 9.42 | C21: 9.46 | D21: 9.38 | E21: 8.97 | F21: 9.10 | G21: 8.85 | L21: MB5 | M21: =_xlfn.T.TEST(B37:G37,$B$33:$J$33,2,2) -> 0.050272325 | O21: =IF(M21<=0.05,TRUE()) -> 0
A22: RO4 | B22: 8.85 | C22: 8.85 | D22: 8.75 | E22: 8.79 | F22: 8.74 | G22: 8.72 | L22: 2HF33 | M22: =_xlfn.T.TEST(B38:G38,$B$33:$J$33,2,2) -> 0.165287597 | O22: =IF(M22<=0.05,TRUE()) -> 0
A23: C7 | B23: 9.30 | C23: 9.33 | D23: 9.34 | E23: 9.43 | F23: 9.24 | G23: 9.28
A24: MB5 | B24: 9.41 | C24: 9.34 | D24: 9.30 | E24: 9.48 | F24: 9.38 | G24: 9.34
A25: 2HF33 | B25: 9.49 | C25: 9.38 | D25: 9.54 | E25: 9.37 | F25: 9.43 | G25: 9.32
B28: log_change1 | C28: log_change2 | D28: log_change3 | E28: log_change4 | F28: log_change5 | G28: log_change6 | H28: log_change7 | I28: log_change8 | J28: log_change9
A29: F2365 | B29: =B3-B16 -> 0.41 | C29: =C3-C16 -> 0.29 | D29: =D3-D16 -> 0.54 | E29: =E3-E16 -> 0.62 | F29: =F3-F16 -> 0.66 | G29: =G3-G16 -> 0.31
A30: ScottA | B30: =B4-B17 -> 1.25 | C30: =C4-C17 -> 1.18 | D30: =D4-D17 -> 1.16 | E30: =E4-E17 -> 0.22 | F30: =F4-F17 -> 0.13 | G30: =G4-G17 -> 0.12
A31: EGD-e | B31: =B5-B18 -> 2.39 | C31: =C5-C18 -> 2.26 | D31: =D5-D18 -> 2.44 | E31: =E5-E18 -> 1.79 | F31: =F5-F18 -> 1.77 | G31: =G5-G18 -> 1.75
A32: AB199 | B32: =B6-B19 -> 0.13 | C32: =C6-C19 -> 0.34 | D32: =D6-D19 -> 0.17 | E32: =E6-E19 -> 0.28 | F32: =F6-F19 -> 0.20 | G32: =G6-G19 -> 0.45
A33: RO15 | B33: =B7-B20 -> 0.24 | C33: =C7-C20 -> 0.12 | D33: =D7-D20 -> 0.27 | E33: =E7-E20 -> 0.15 | F33: =F7-F20 -> -0.01 | G33: =G7-G20 -> -0.08 | H33: =H7-H20 -> -0.01 | I33: =I7-I20 -> -0.02 | J33: =J7-J20 -> -0.19
A34: AB120 | B34: =B8-B21 -> 0.29 | C34: =C8-C21 -> 0.22 | D34: =D8-D21 -> 0.28 | E34: =E8-E21 -> 0.28 | F34: =F8-F21 -> 0.35 | G34: =G8-G21 -> 0.65
A35: RO4 | B35: =B9-B22 -> 0.91 | C35: =C9-C22 -> 1.17 | D35: =D9-D22 -> 1.16 | E35: =E9-E22 -> 0.89 | F35: =F9-F22 -> 0.90 | G35: =G9-G22 -> 0.95
A36: C7 | B36: =B10-B23 -> 0.45 | C36: =C10-C23 -> 0.60 | D36: =D10-D23 -> 0.44 | E36: =E10-E23 -> 0.17 | F36: =F10-F23 -> 0.20 | G36: =G10-G23 -> 0.35
A37: MB5 | B37: =B11-B24 -> 0.29 | C37: =C11-C24 -> 0.36 | D37: =D11-D24 -> 0.40 | E37: =E11-E24 -> 0.13 | F37: =F11-F24 -> 0.08 | G37: =G11-G24 -> 0.08
A38: 2HF33 | B38: =B12-B25 -> 0.14 | C38: =C12-C25 -> 0.26 | D38: =D12-D25 -> 0.10 | E38: =E12-E25 -> 0.12 | F38: =F12-F25 -> 0.06 | G38: =G12-G25 -> 0.25
